bitfinex/quotes_SOLUSD_20250207
["timestamp","ask_amount","ask_price","bid_price","bid_amount"]
[1738937218819,0.03,201.67,201.64,38.38895878]
[1738937219118,0.03,201.67,201.63,44.09204145]
[1738937219343,0.03,201.67,201.63,50.70494145]
[1738937219513,0.03,201.67,201.63,45.74564145]
[1738937219836,0.03,201.67,201.61,43.34895878]
[1738937220035,0.03,201.67,201.61,4.96]
[1738937220247,0.03,201.67,201.62,38.38895878]
[1738937220546,0.03,201.67,201.63,39.13273648]
[1738937220954,0.03,201.67,201.64,4.9593]
[1738937221140,0.03,201.67,201.63,38.38895878]
[1738937221334,0.03,201.67,201.63,43.34835878]
[1738937221538,0.03,201.67,201.66,38.38895878]
[1738937222267,0.03,201.67,201.65,38.38895878]
[1738937222468,0.03,201.67,201.62,43.34875878]
[1738937222636,0.03,201.67,201.61,0.74355916]
[1738937222830,39.38075878,201.65,201.58,45.75557845]
[1738937223037,39.38075878,201.65,201.58,6.6228]
[1738937223558,0.03,201.67,201.6,38.38895878]
[1738937223755,39.41065878,201.67,201.6,38.38895878]
[1738937223933,39.41065878,201.67,201.61,38.38895878]
[1738937223934,0.03,201.67,201.61,38.38895878]
[1738937224144,38.38895878,201.66,201.58,45.01175878]
[1738937224341,38.38895878,201.65,201.58,45.01175878]
[1738937224542,1.0217,201.67,201.58,45.01175878]
[1738937224543,39.41065878,201.67,201.59,38.38895878]
[1738937224874,38.38895878,201.65,201.58,45.01175878]
[1738937225036,38.41895878,201.67,201.59,38.38895878]
[1738937225440,38.41895878,201.67,201.6,38.38895878]
[1738937225862,0.03,201.67,201.61,38.38895878]
[1738937226046,0.03,201.67,201.62,38.38895878]
[1738937226244,1.0,201.77,201.62,38.38895878]
[1738937226245,38.38895878,201.8,201.71,6.4102]
[1738937226452,38.38895878,201.9,201.79,38.38895878]
[1738937226655,0.9905,201.91,201.84,38.38895878]
[1738937226873,0.9905,201.9,201.84,38.38895878]
[1738937227040,39.37945878,201.92,201.84,38.38895878]
[1738937227239,38.38895878,201.92,201.84,43.34325878]
[1738937227561,1.0,201.96,201.86,38.38895878]
[1738937227562,39.37925878,201.96,201.86,38.38895878]
[1738937227766,39.37925878,201.96,201.87,5.68284189]
[1738937228371,0.9903,201.95,201.87,4.94]
[1738937228853,38.38895878,201.94,201.87,4.94]
[1738937229058,0.9904,201.93,201.87,4.94]
[1738937229765,38.38895878,201.92,201.87,4.94]
[1738937229969,38.38895878,201.92,201.84,38.38895878]
[1738937230171,38.38895878,201.9,201.85,4.92]
[1738937230788,38.38895878,201.87,201.85,4.92]
[1738937231081,39.37965878,201.87,201.85,4.92]
[1738937231443,39.37965878,201.87,201.8,43.30895878]
[1738937231647,38.38895878,201.84,201.8,4.92]
[1738937231956,38.38895878,201.85,201.8,4.92]
[1738937232300,38.38895878,201.86,201.78,44.95875878]
[1738937232449,38.38895878,201.84,201.77,4.92]
[1738937232649,38.38895878,201.84,201.77,43.30895878]
[1738937232965,38.38895878,201.84,201.77,4.92]
[1738937233161,38.38895878,201.84,201.76,38.38895878]
[1738937233162,0.9909,201.83,201.76,43.30895878]
[1738937233357,38.38895878,201.81,201.76,4.92]
[1738937233571,39.37985878,201.83,201.76,4.92]
[1738937233880,38.38895878,201.82,201.76,4.92]
[1738937234060,0.9909,201.83,201.77,38.38895878]
[1738937234655,0.9909,201.83,201.76,43.30895878]
[1738937234864,38.38895878,201.81,201.76,4.92]
[1738937235166,0.9909,201.83,201.77,38.38895878]
[1738937235369,38.38895878,201.82,201.76,4.92]
[1738937236055,38.41895878,201.88,201.81,38.38895878]
[1738937236250,38.41895878,201.88,201.82,38.38895878]
[1738937236251,0.9907,201.87,201.82,38.38895878]
[1738937236650,24.55718506,201.87,201.8,23.56648506]
[1738937236850,24.55718506,201.87,201.76,10.61957889]
[1738937236851,24.55718506,201.87,201.79,23.56648506]
[1738937237174,23.56648506,201.86,201.79,23.56648506]
[1738937237388,0.9908,201.85,201.79,23.56648506]
[1738937237878,24.55728506,201.85,201.77,23.56648506]
[1738937238074,23.56648506,201.84,201.76,28.48648506]
[1738937238267,0.9908,201.85,201.76,28.48648506]
[1738937238268,23.56648506,201.83,201.76,28.48648506]
[1738937238475,23.56648506,201.84,201.77,23.56648506]
[1738937238782,0.03,201.82,201.77,23.56648506]
[1738937239079,0.03,201.82,201.8,23.56648506]
[1738937239561,0.03,201.82,201.78,23.56648506]
[1738937240080,0.03,201.82,201.76,28.48648506]
[1738937240255,23.56648506,201.81,201.76,4.92]
[1738937240456,23.59648506,201.82,201.76,4.92]
[1738937240887,0.03,201.82,201.76,28.48648506]
[1738937241086,23.56648506,201.78,201.71,23.56648506]
[1738937241277,23.56648506,201.75,201.68,29.84588506]
[1738937241453,0.03,201.82,201.72,20.0]
[1738937241653,0.03,201.82,201.73,0.74346431]
[1738937241654,0.991,201.81,201.73,0.74346431]
[1738937242064,0.03,201.82,201.73,0.74346431]
[1738937242065,0.03,201.82,201.73,20.74346431]
[1738937242456,0.03,201.82,201.8,23.56648506]
[1738937242768,0.03,201.82,201.81,24.30960322]
[1738937243183,0.03,201.82,201.81,24.3094178]
[1738937243703,0.03,201.82,201.81,23.56648506]
[1738937243888,0.03,201.82,201.81,24.30956726]
[1738937244192,0.03,201.82,201.81,29.26466726]
[1738937244574,0.03,201.82,201.81,42.67651579]
[1738937245294,0.03,201.88,201.84,20.0]
[1738937245478,0.03,201.88,201.87,23.56648506]
[1738937245785,0.03,201.88,201.87,24.30923939]
[1738937246286,0.03,201.88,201.86,23.56648506]
[1738937246605,0.03,201.88,201.84,28.48648506]
[1738937246764,0.03,201.88,201.84,4.92]
[1738937247104,0.03,201.88,201.85,23.56648506]
[1738937247472,0.03,201.88,201.85,24.30937901]
[1738937247718,0.03,201.88,201.84,4.92]
[1738937248499,23.56648506,201.87,201.8,34.82758506]
[1738937248811,0.03,201.88,201.83,23.56648506]
[1738937248968,0.03,201.88,201.84,0.74292946]
[1738937249168,0.03,201.88,201.85,23.56648506]
[1738937249785,0.03,201.88,201.8,34.82758506]
[1738937249786,0.03,201.88,201.87,23.56648506]
[1738937250099,1.0,202.03,201.88,6.6612]
[1738937250100,0.99,202.01,201.88,6.6612]
[1738937250298,23.56648506,202.01,201.94,23.56648506]
[1738937250495,23.56648506,202.0,201.95,0.7425259]
[1738937250668,23.56648506,202.01,201.94,5.6625843]
[1738937250871,23.56648506,202.01,201.94,4.92]
[1738937251082,23.56648506,202.01,201.94,5.66258233]
[1738937251291,23.56648506,202.0,201.94,5.66258233]
[1738937251574,23.56648506,201.97,201.94,5.66258233]
[1738937251800,23.56648506,201.97,201.94,4.92]
[1738937251975,23.56648506,201.98,201.91,4.92]
[1738937252183,23.56648506,201.98,201.92,0.74259765]
[1738937252387,23.56648506,201.97,201.91,4.92]
[1738937252588,23.56648506,201.99,201.92,0.74269524]
[1738937253594,23.56648506,201.99,201.92,5.69489524]
[1738937253980,23.56648506,202.01,201.93,23.56648506]
[1738937254181,23.56648506,202.02,201.95,23.56648506]
[1738937254379,23.59648506,202.04,201.96,24.3089633]
[1738937254622,0.03,202.04,201.98,23.56648506]
[1738937254899,23.59648506,202.04,201.99,0.74234232]
[1738937255283,0.03,202.04,201.99,0.68480975]
[1738937255600,23.59648506,202.04,201.99,5.63540975]
[1738937255791,0.03,202.04,202.02,23.56648506]
[1738937255985,0.03,202.04,202.03,24.25110649]
[1738937256185,0.03,202.04,202.03,0.68462143]
[1738937256976,0.03,202.04,202.03,24.25110649]
[1738937257573,0.03,202.04,202.03,29.20080649]
[1738937257774,0.03,202.04,202.03,5.63432143]
[1738937258406,0.03,202.04,202.03,0.68462143]
[1738937258585,0.03,202.04,202.03,24.25110649]
[1738937259006,0.03,202.04,202.03,0.68462143]
[1738937259486,0.03,202.04,202.03,24.25110649]
[1738937260298,0.03,202.04,202.03,0.68462143]
[1738937260800,0.03,202.04,202.03,24.25110649]
[1738937260985,0.03,202.04,202.03,0.68462143]
[1738937261496,0.03,202.04,202.03,24.25110649]
[1738937261889,23.56648506,202.15,202.06,20.0]
[1738937262086,1.0188,202.25,202.08,6.1739]
[1738937262292,1.0,202.24,202.09,0.68433863]
[1738937262488,23.56648506,202.17,202.09,24.25082369]
[1738937262800,23.56648506,202.17,202.1,23.56648506]
[1738937263008,23.56648506,202.2,202.13,23.56648506]
[1738937263214,0.9888,202.25,202.13,23.56648506]
[1738937263215,23.56648506,202.21,202.13,23.56648506]
[1738937263413,23.56648506,202.2,202.13,23.56648506]
[1738937263709,0.9885,202.32,202.16,13.41184853]
[1738937263887,1.6564,202.33,202.19,13.41184853]
[1738937264095,2.6448,202.33,202.2,0.74145114]
[1738937264410,0.9884,202.33,202.21,4.92]
[1738937264610,25.09598506,202.4,202.24,20.0]
[1738937264611,0.9881,202.39,202.24,20.0]
[1738937264797,0.9881,202.39,202.21,4.92]
[1738937264798,23.56648506,202.3,202.25,0.74137229]
[1738937265101,23.56648506,202.31,202.25,0.74137229]
[1738937265308,23.56648506,202.33,202.26,23.56648506]
[1738937265616,20.0,202.37,202.25,0.74137229]
[1738937265804,3.4587,202.38,202.23,0.74144067]
[1738937266004,0.9882,202.38,202.26,0.74144067]
[1738937266819,23.56648506,202.38,202.31,23.56648506]
[1738937267024,23.56648506,202.39,202.32,0.74111808]
[1738937267193,0.988,202.42,202.31,6.2046]
[1738937267391,23.56648506,202.39,202.32,24.11710482]
[1738937267690,23.56648506,202.4,202.32,24.11710482]
[1738937267892,1.0,202.44,202.32,0.55061976]
[1738937267893,23.56648506,202.36,202.32,0.55061976]
[1738937268097,0.988,202.41,202.31,6.75549805]
[1738937268098,23.56648506,202.38,202.31,6.75549805]
[1738937268317,23.56648506,202.38,202.31,30.32198311]
[1738937268520,23.56648506,202.37,202.31,6.75549805]
[1738937268822,23.56648506,202.38,202.31,29.77108506]
[1738937269009,23.56648506,202.39,202.32,0.55097456]
[1738937269214,24.55448506,202.41,202.33,23.56648506]
[1738937269522,24.55448506,202.41,202.31,11.1474]
[1738937269523,23.56648506,202.37,202.31,6.2046]
[1738937269726,23.56648506,202.4,202.32,24.11743663]
[1738937269894,24.55458506,202.39,202.32,24.11743663]
[1738937270090,23.56648506,202.38,202.32,0.55095157]
[1738937270325,23.56648506,202.35,202.31,6.2046]
[1738937270687,3.4585,202.39,202.31,6.2046]
[1738937270902,23.56648506,202.33,202.27,5.45116999]
[1738937271311,23.56648506,202.33,202.27,4.9]
[1738937271626,23.56648506,202.37,202.28,0.55146562]
[1738937271791,0.9881,202.39,202.33,23.56648506]
[1738937271998,0.9881,202.39,202.34,0.55065189]
[1738937272214,23.56648506,202.37,202.31,0.55075309]
[1738937272407,23.56648506,202.36,202.28,24.11749259]
[1738937272602,27.02498506,202.39,202.32,23.56648506]
[1738937272817,0.9881,202.39,202.33,0.55088211]
[1738937273031,0.9881,202.39,202.34,23.56648506]
[1738937273245,2.47,202.43,202.36,23.56648506]
[1738937273246,0.9881,202.41,202.36,23.56648506]
[1738937273416,0.9881,202.41,202.35,24.11708896]
[1738937273739,23.56648506,202.42,202.35,0.5506039]
[1738937273904,23.56648506,202.46,202.38,23.56648506]
[1738937274106,2.4693,202.48,202.39,24.11666101]
[1738937274107,23.56648506,202.47,202.39,24.11666101]
[1738937274299,24.55418506,202.48,202.41,23.56648506]
[1738937274611,24.55418506,202.48,202.42,0.55001945]
[1738937274934,23.56648506,202.47,202.4,23.56648506]
[1738937275234,15.90254772,202.56,202.4,23.56648506]
[1738937275235,23.56648506,202.69,202.63,1.0]
[1738937275398,23.56648506,202.69,202.62,6.4667]
[1738937275399,23.56648506,202.74,202.69,1.0]
[1738937275600,23.56648506,202.74,202.67,1.0]
[1738937275915,23.56648506,202.74,202.71,1.0]
[1738937276095,23.56648506,202.74,202.69,1.0]
[1738937276303,23.56648506,202.72,202.66,1.0]
[1738937276535,23.56648506,202.72,202.68,1.0]
[1738937276826,23.56648506,202.74,202.67,1.0]
[1738937277338,0.9862,202.79,202.65,1.0]
[1738937277339,23.56648506,202.72,202.65,1.0]
[1738937277834,23.56648506,202.72,202.65,1.7399641]
[1738937278133,23.56648506,202.72,202.64,28.46648506]
[1738937278134,23.56648506,202.7,202.64,4.9]
[1738937278640,23.56648506,202.68,202.63,1.0]
[1738937278836,1.0,202.76,202.62,4.9]
[1738937278837,23.56648506,202.66,202.62,4.9]
[1738937279048,23.56648506,202.64,202.6,1.0]
[1738937279209,23.56648506,202.62,202.55,1.0]
[1738937279407,23.56648506,202.59,202.53,5.9]
[1738937279638,23.56648506,202.57,202.53,1.0]
[1738937279834,1.37602639,202.66,202.51,4.9]
[1738937279835,23.56648506,202.55,202.51,1.0]
[1738937280042,23.56648506,202.55,202.48,4.9]
[1738937280211,23.56648506,202.55,202.49,0.74053897]
[1738937280411,23.56648506,202.55,202.48,4.9]
[1738937280614,23.56648506,202.53,202.47,1.0]
[1738937280829,23.56648506,202.51,202.46,1.0]
[1738937281030,23.56648506,202.53,202.49,1.0]
[1738937281355,23.56648506,202.59,202.52,24.56648506]
[1738937281550,23.56648506,202.59,202.52,1.0]
[1738937281758,23.56648506,202.58,202.52,1.0]
[1738937281962,23.56648506,202.57,202.54,1.0]
[1738937282147,23.56648506,202.6,202.54,1.0]
[1738937282653,38.02552344,202.6,202.54,1.0]
[1738937282860,38.02552344,202.59,202.52,39.02552344]
[1738937283021,3.4542,202.65,202.57,1.0]
[1738937283022,38.02552344,202.6,202.57,1.0]
[1738937283355,38.02552344,202.63,202.56,39.02552344]
[1738937283649,38.02552344,202.63,202.56,1.0]
[1738937283858,38.02552344,202.6,202.54,1.0]
[1738937284064,38.02552344,202.58,202.52,1.0]
[1738937284222,38.02552344,202.56,202.52,1.0]
[1738937284423,38.02552344,202.55,202.5,1.0]
[1738937284641,4.4548,202.61,202.5,1.0]
[1738937284642,38.02552344,202.56,202.5,1.0]
[1738937284855,38.02552344,202.56,202.53,1.0]
[1738937285147,38.02552344,202.57,202.52,1.0]
[1738937285360,4.83082639,202.61,202.5,1.0]
[1738937285528,38.02552344,202.51,202.48,1.0]
[1738937285727,38.02552344,202.5,202.48,1.0]
[1738937286038,38.02552344,202.49,202.44,1.0]
[1738937286337,38.02552344,202.49,202.42,43.92552344]
[1738937286546,38.02552344,202.5,202.42,43.92552344]
[1738937287255,38.02552344,202.57,202.52,1.0]
[1738937287557,38.02552344,202.54,202.52,1.0]
[1738937287733,1.9872,202.58,202.48,1.0]
[1738937287934,39.01312344,202.51,202.48,1.0]
[1738937288144,38.02552344,202.52,202.48,1.0]
[1738937288353,38.02552344,202.52,202.5,1.0]
[1738937288738,38.02552344,202.51,202.48,1.0]
[1738937288948,38.02552344,202.49,202.43,1.0]
[1738937289344,0.9873,202.57,202.5,1.0]
[1738937289545,38.02552344,202.51,202.48,1.0]
[1738937289766,1.0,202.55,202.44,1.0]
[1738937289947,3.4562,202.53,202.46,0.063]
[1738937290143,38.02552344,202.47,202.46,0.063]
[1738937290346,38.02552344,202.48,202.46,0.063]
[1738937290670,38.02552344,202.47,202.46,0.063]
[1738937291031,38.02552344,202.47,202.3,44.55802344]
[1738937291032,38.02552344,202.38,202.34,4.96]
[1738937291229,38.02552344,202.4,202.38,1.0]
[1738937291462,0.37602639,202.49,202.38,1.0]
[1738937291762,38.02552344,202.5,202.41,1.0]
[1738937291993,0.9877,202.49,202.41,1.0]
[1738937292174,0.9877,202.49,202.37,1.0]
[1738937292466,20.0,202.44,202.34,1.0]
[1738937292673,38.02552344,202.35,202.32,1.0]
[1738937292835,38.02552344,202.33,202.31,5.0]
[1738937293165,38.02552344,202.33,202.28,1.0]
[1738937293334,38.02552344,202.34,202.28,1.0]
[1738937293667,38.02552344,202.4,202.28,1.0]
[1738937293668,38.02552344,202.3,202.28,1.0]
[1738937293830,38.02552344,202.3,202.25,1.0]
[1738937294027,39.01412344,202.31,202.28,1.0]
[1738937294349,3.4592,202.35,202.26,1.0]
[1738937294552,38.02552344,202.29,202.26,1.0]
[1738937294864,39.01382344,202.35,202.29,1.0]
[1738937295060,0.9883,202.35,202.29,1.0]
[1738937295244,38.02552344,202.3,202.23,1.063]
[1738937295442,20.0,202.31,202.23,0.063]
[1738937295863,1.37602639,202.3,202.23,0.063]
[1738937296172,1.37602639,202.3,202.13,4.9471]
[1738937296173,1.0,202.23,202.1,1.0]
[1738937296362,1.0,202.21,202.14,1.0]
[1738937296564,38.02552344,202.15,202.04,1.0]
[1738937296738,38.02552344,202.08,202.07,1.0]
[1738937296939,38.02552344,202.09,202.07,1.0]
[1738937297494,1.37602639,202.17,202.07,1.0]
[1738937297495,38.02552344,202.08,202.07,1.0]
[1738937297635,38.02552344,202.08,202.02,0.063]
[1738937297840,38.02552344,202.04,202.02,0.063]
[1738937298144,38.02552344,202.1,202.02,0.063]
[1738937298145,38.02552344,202.03,202.02,0.063]
[1738937298561,38.02552344,202.04,202.02,0.063]
[1738937298770,38.02552344,202.03,202.02,0.063]
[1738937298951,52.43737197,202.03,201.95,5.04]
[1738937299166,52.43737197,202.03,201.88,0.80566293]
[1738937299167,1.0,202.01,201.88,0.063]
[1738937299487,1.0,201.96,201.88,0.063]
[1738937299681,0.37602639,201.95,201.88,0.063]
[1738937299865,1.0,201.94,201.88,0.063]
[1738937300048,0.9903,201.94,201.88,0.063]
[1738937300367,38.02552344,201.91,201.88,1.063]
[1738937300574,38.02552344,201.94,201.9,1.0]
[1738937300869,1.36622639,201.98,201.88,1.063]
[1738937301075,0.9902,201.98,201.88,1.063]
[1738937301265,0.9902,201.98,201.93,1.0]
[1738937301470,0.9899,202.03,201.95,1.0]
[1738937302065,38.02552344,201.99,201.95,1.0]
[1738937302271,38.02552344,202.0,201.95,1.0]
[1738937302458,38.02552344,202.03,201.97,1.0]
[1738937302856,38.02552344,202.04,201.97,39.02552344]
[1738937303062,2.4742,202.09,202.06,1.0]
[1738937303063,38.02552344,202.09,202.06,1.0]
[1738937303276,1.37602639,202.17,202.06,1.0]
[1738937303457,38.02552344,202.11,202.06,1.0]
[1738937303658,38.02552344,202.08,202.04,1.0]
[1738937303858,38.02552344,202.06,202.02,1.0]
[1738937304164,38.02552344,202.09,202.02,39.02552344]
[1738937304384,38.02552344,202.13,202.09,1.0]
[1738937304580,38.40154983,202.2,202.09,1.0]
[1738937304782,0.9891,202.2,202.11,1.0]
[1738937305096,0.9891,202.2,202.13,1.0]
[1738937305265,13.41184853,202.18,202.08,1.0]
[1738937305801,38.02552344,202.11,202.07,1.0]
[1738937305977,38.02552344,202.11,202.06,1.0]
[1738937306172,38.02552344,202.1,202.04,1.0]
[1738937306375,38.02552344,202.1,202.06,1.0]
[1738937306574,0.37602639,202.19,202.13,1.0]
[1738937306789,1.989,202.22,202.11,1.0]
[1738937307004,0.989,202.22,202.11,1.0]
[1738937307181,0.9889,202.24,202.16,1.0]
[1738937307868,0.9889,202.24,202.07,20.0]
[1738937307869,39.01422344,202.28,202.22,1.0]
[1738937308085,38.02552344,202.25,202.18,39.02552344]
[1738937308267,0.37602639,202.33,202.18,39.02552344]
[1738937308268,38.02552344,202.22,202.18,1.0]
[1738937308462,38.02552344,202.22,202.17,5.16]
[1738937308463,0.9887,202.28,202.17,5.16]
[1738937308692,0.9884,202.33,202.22,1.0]
[1738937309214,0.9884,202.33,202.27,1.0]
[1738937309512,0.9884,202.33,202.21,1.0]
[1738937309671,38.02552344,202.28,202.21,1.0]
[1738937309883,38.02552344,202.27,202.21,1.0]
[1738937310100,38.02552344,202.33,202.26,39.02552344]
[1738937310310,38.02552344,202.34,202.26,43.96942344]
[1738937310478,3.84612639,202.42,202.21,1.0]
[1738937310479,38.02552344,202.27,202.21,1.0]
[1738937310801,0.9882,202.38,202.21,1.0]
[1738937310802,3.4587,202.38,202.23,1.0]
[1738937311006,20.0,202.37,202.25,1.0]
[1738937311169,20.0,202.37,202.22,0.74151083]
[1738937311170,3.83472639,202.38,202.28,1.0]
[1738937311482,0.9881,202.4,202.33,1.0]
[1738937311688,38.02552344,202.36,202.31,1.0]
[1738937311889,38.02552344,202.32,202.26,1.0]
[1738937312087,38.02552344,202.29,202.22,1.0]
[1738937312388,0.9887,202.28,202.2,1.0]
[1738937312573,1.36472639,202.28,202.17,1.0]
[1738937312770,13.41184853,202.27,202.15,1.0]
[1738937312966,20.0,202.24,202.15,1.0]
[1738937313480,38.02552344,202.17,202.13,7.0907]
[1738937313681,38.02552344,202.16,202.1,1.0]
[1738937313890,38.02552344,202.18,202.1,39.02552344]
[1738937314199,38.02552344,202.21,202.13,39.02552344]
[1738937314401,39.01442344,202.23,202.17,1.0]
[1738937314897,38.02552344,202.19,202.15,1.0]
[1738937315093,38.02552344,202.16,202.11,1.0]
[1738937315395,38.02552344,202.12,202.07,1.0]
[1738937315693,38.02552344,202.12,202.04,6.2993]
[1738937315694,20.0,202.17,202.05,1.0]
[1738937315901,20.0,202.17,202.06,1.0]
[1738937316095,13.78787492,202.16,202.04,1.0]
[1738937316289,13.78787492,202.16,202.08,1.0]
[1738937316483,0.9893,202.15,202.04,1.0]
[1738937316683,38.02552344,202.07,202.04,1.0]
[1738937317010,38.02552344,202.11,202.04,39.02552344]
[1738937317202,0.9892,202.17,202.12,1.0]
[1738937317586,0.9892,202.17,202.08,1.0]
[1738937317784,1.37602639,202.16,202.02,0.063]
[1738937318099,1.37602639,202.16,202.04,1.0]
[1738937318312,38.02552344,202.08,202.04,1.0]
[1738937318479,39.01522344,202.08,202.03,1.0]
[1738937318804,38.02552344,202.09,202.02,39.08852344]
[1738937318994,38.02552344,202.07,202.02,1.063]
[1738937319192,38.02552344,202.08,202.02,1.063]
[1738937319497,0.9892,202.17,202.07,1.0]
[1738937319672,0.37602639,202.16,202.07,1.0]
[1738937319872,14.41184853,202.15,202.05,1.0]
[1738937320093,8.4086,202.17,202.02,0.063]
[1738937320094,13.41184853,202.11,202.02,0.063]
[1738937320399,0.9895,202.11,202.04,1.0]
[1738937320600,38.02552344,202.08,202.04,1.0]
[1738937320901,38.02552344,202.09,202.04,1.0]
[1738937321111,38.02552344,202.1,202.04,1.0]
[1738937321299,0.37602639,202.16,202.04,1.0]
[1738937321300,39.01502344,202.13,202.08,1.0]
[1738937321806,38.02552344,202.12,202.07,1.0]
[1738937322037,0.9891,202.2,202.12,1.0]
[1738937322301,38.02552344,202.13,202.09,1.0]
[1738937322488,38.02552344,202.1,202.07,1.0]
[1738937322686,38.02552344,202.14,202.07,5.9487]
[1738937323011,0.9893,202.16,202.07,1.0]
[1738937323379,38.02552344,202.13,202.09,1.0]
[1738937323790,38.02552344,202.14,202.09,1.0]
[1738937323992,20.0,202.17,202.09,1.0]
[1738937323993,38.02552344,202.17,202.13,1.0]
[1738937324189,38.02552344,202.2,202.15,1.0]
[1738937324400,7.5298,202.33,202.17,1.0]
[1738937324401,38.02552344,202.22,202.17,1.0]
[1738937324697,39.01452344,202.22,202.17,1.0]
[1738937324877,38.02552344,202.2,202.15,1.0]
[1738937325084,38.02552344,202.18,202.12,1.0]
[1738937325301,38.02552344,202.16,202.12,1.0]
[1738937325499,38.02552344,202.13,202.07,1.0]
[1738937325684,38.02552344,202.12,202.07,1.0]
[1738937326077,20.0,202.15,202.07,1.0]
[1738937326409,38.02552344,202.13,202.06,1.0]
[1738937326594,38.02552344,202.13,202.08,1.0]
[1738937326793,38.02552344,202.11,202.06,1.0]
[1738937327106,38.02552344,202.11,202.04,38.02552344]
[1738937327107,0.9894,202.13,202.08,1.0]
[1738937327295,0.9891,202.19,202.13,1.0]
[1738937327705,0.37602639,202.28,202.13,1.0]
[1738937328012,30.0,237.71,202.33,1.0]
[1738937328013,2.4697,202.45,202.33,1.0]
[1738937328209,2.4697,202.45,202.39,1.0]
[1738937328210,0.9878,202.45,202.39,1.0]
[1738937328511,38.02552344,202.43,202.4,1.0]
[1738937328807,38.02552344,202.41,202.4,1.0]
[1738937328978,38.02552344,202.41,202.35,1.0]
[1738937329182,38.02552344,202.37,202.33,6.54]
[1738937329520,38.02552344,202.35,202.33,5.54]
[1738937329804,3.4579,202.43,202.34,1.0]
[1738937329805,38.02552344,202.37,202.34,1.0]
[1738937330201,38.02552344,202.39,202.36,1.0]
[1738937330586,38.02552344,202.39,202.34,1.0]
[1738937330997,38.02552344,202.37,202.33,5.54]
[1738937331304,38.02552344,202.34,202.27,1.0]
[1738937331504,38.02552344,202.34,202.29,1.0]
[1738937331704,38.02552344,202.38,202.33,1.0]
[1738937331899,38.02552344,202.42,202.38,1.0]
[1738937332288,38.02552344,202.4,202.38,1.0]
[1738937332493,38.02552344,202.42,202.36,1.0]
[1738937332894,38.02552344,202.44,202.36,1.0]
[1738937333193,39.01332344,202.46,202.41,1.0]
[1738937333986,38.02552344,202.46,202.41,1.0]
[1738937334187,39.01332344,202.46,202.41,1.0]
[1738937335007,2.469,202.51,202.38,1.0]
[1738937335008,38.02552344,202.43,202.38,1.0]
[1738937335212,38.02552344,202.5,202.38,1.0]
[1738937335213,38.02552344,202.4,202.38,1.0]
[1738937335599,38.02552344,202.39,202.36,1.0]
[1738937335801,38.02552344,202.37,202.33,1.0]
[1738937336094,38.02552344,202.34,202.31,1.0]
[1738937336414,38.02552344,202.36,202.29,6.5]
[1738937336587,38.02552344,202.37,202.31,1.0]
[1738937336788,0.988,202.42,202.37,1.0]
[1738937337107,0.9877,202.49,202.37,1.0]
[1738937337313,38.02552344,202.44,202.4,1.0]
[1738937337607,38.02552344,202.44,202.36,38.02552344]
[1738937337608,38.02552344,202.44,202.42,1.0]
[1738937337911,38.02552344,202.46,202.42,1.0]
[1738937338119,39.01322344,202.49,202.42,1.0]
[1738937338411,0.9876,202.51,202.48,1.0]
[1738937338587,38.02552344,202.52,202.48,1.0]
[1738937339096,2.4682,202.58,202.53,1.0]
[1738937339097,38.02552344,202.54,202.53,1.0]
[1738937339294,38.02552344,202.59,202.53,1.0]
[1738937339488,38.02552344,202.59,202.55,1.0]
[1738937339707,38.02552344,202.59,202.57,1.0]
[1738937339906,36.02552344,202.59,202.57,1.0]
[1738937340110,38.02552344,202.58,202.54,1.0]
[1738937340303,38.02552344,202.59,202.56,1.0]
[1738937340612,38.02552344,202.59,202.57,1.0]